bitfinex/quotes_SOLUSD_20241122
["timestamp","ask_amount","ask_price","bid_price","bid_amount"]
[1732270691096,22.66197447,257.07,257.0,22.66197447]
[1732270691675,22.66197447,257.09,257.02,22.66197447]
[1732270691883,22.66197447,257.11,257.02,22.66197447]
[1732270692203,22.66197447,257.13,257.06,22.66197447]
[1732270692593,22.66197447,257.17,257.08,22.66197447]
[1732270692819,22.66197447,257.17,257.1,22.66197447]
[1732270692977,22.66197447,257.19,257.1,22.66197447]
[1732270693301,22.66197447,257.19,257.12,22.66197447]
[1732270693483,22.66197447,257.21,257.12,22.66197447]
[1732270694404,22.66197447,257.15,257.06,22.66197447]
[1732270694585,22.66197447,257.13,257.05,20.0]
[1732270695807,22.66197447,257.13,257.06,22.66197447]
[1732270695991,22.66197447,257.13,256.99,20.0]
[1732270695992,22.66197447,257.13,257.04,22.66197447]
[1732270697101,22.66197447,257.1,257.03,20.0]
[1732270697314,22.66197447,257.1,256.97,7.1691]
[1732270697315,22.66197447,257.08,257.0,22.66197447]
[1732270697482,22.66197447,257.1,257.01,20.0]
[1732270698310,22.66197447,257.1,257.02,22.66197447]
[1732270700803,14.13541776,257.11,257.03,14.13541776]
[1732270702097,14.13541776,257.15,257.07,14.13541776]
[1732270702406,14.13541776,257.09,257.01,14.13541776]
[1732270703307,14.13541776,257.11,257.01,14.13541776]
[1732270703689,14.13541776,257.09,257.01,14.13541776]
[1732270704109,14.13541776,257.07,256.99,14.13541776]
[1732270704691,14.13541776,257.09,257.01,14.13541776]
[1732270705112,6.3534,257.12,257.01,14.13541776]
[1732270705113,14.13541776,257.07,257.01,14.13541776]
[1732270705606,14.13541776,257.05,256.98,14.13541776]
[1732270705812,14.13541776,257.03,256.97,20.0]
[1732270705997,14.13541776,257.02,256.95,20.0]
[1732270706200,8.8534,257.12,256.95,20.0]
[1732270706201,14.13541776,257.03,256.95,34.13541776]
[1732270706397,14.13541776,257.06,256.97,14.13541776]
[1732270706699,14.13541776,257.05,256.98,14.13541776]
[1732270706897,14.13541776,257.06,256.98,14.13541776]
[1732270707418,14.13541776,257.08,257.0,14.13541776]
[1732270708318,14.13541776,257.1,257.02,14.13541776]
[1732270709521,14.13541776,257.04,256.89,43.776884]
[1732270709720,14.13541776,257.01,256.95,23.776884]
[1732270710019,14.13541776,257.01,256.94,23.776884]
[1732270711221,14.13541776,257.01,256.94,20.0]
[1732270711908,14.13541776,257.01,256.93,14.13541776]
[1732270713397,14.13541776,257.03,256.95,14.13541776]
[1732270713608,5.0,257.15,256.88,14.13541776]
[1732270713609,14.13541776,257.05,256.97,14.13541776]
[1732270714930,14.13541776,257.01,256.94,20.0]
[1732270719529,14.13541776,256.99,256.91,23.776884]
[1732270719699,14.13541776,256.99,256.91,20.0]
[1732270720323,14.13541776,256.99,256.9,14.13541776]
[1732270721112,14.13541776,256.97,256.9,14.13541776]
[1732270721915,14.13541776,256.97,256.88,14.13541776]
[1732270724028,14.13541776,256.95,256.86,14.13541776]
[1732270724232,14.13541776,256.95,256.87,20.0]
[1732270724929,14.13541776,256.93,256.87,20.0]
[1732270725236,14.13541776,256.93,256.84,14.13541776]
[1732270725740,14.13541776,256.91,256.82,14.13541776]
[1732270727732,14.13541776,256.91,256.84,14.13541776]
[1732270727924,14.13541776,256.93,256.84,14.13541776]
[1732270728715,14.13541776,256.9,256.82,14.13541776]
[1732270731341,14.13541776,256.91,256.83,14.13541776]
[1732270731528,14.13541776,256.91,256.84,20.0]
[1732270733020,16.82198304,257.04,256.89,14.13541776]
[1732270733021,6.3797,257.04,256.89,14.13541776]
[1732270733222,14.13541776,256.97,256.89,14.13541776]
[1732270733818,14.13541776,256.95,256.87,14.13541776]
[1732270734119,14.13541776,256.95,256.88,20.0]
[1732270735415,14.13541776,256.95,256.89,23.776884]
[1732270735621,14.13541776,256.99,256.9,20.0]
[1732270735828,14.13541776,256.99,256.91,14.13541776]
[1732270736030,14.13541776,256.99,256.92,20.0]
[1732270736843,14.13541776,256.97,256.9,20.0]
[1732270737147,14.13541776,256.93,256.79,20.0]
[1732270737325,14.13541776,256.93,256.85,43.776884]
[1732270738052,14.13541776,256.93,256.85,57.91230176]
[1732270739335,14.13541776,256.95,256.88,14.13541776]
[1732270739644,14.13541776,256.93,256.85,43.776884]
[1732270739826,14.13541776,256.93,256.87,20.0]
[1732270740023,14.13541776,256.95,256.87,20.0]
[1732270740428,14.13541776,256.97,256.9,14.13541776]
[1732270741338,14.13541776,256.97,256.89,20.0]
[1732270745070,14.13541776,256.99,256.9,14.13541776]
[1732270747035,14.13541776,256.97,256.89,20.0]
[1732270748530,14.13541776,256.97,256.9,14.13541776]
[1732270749755,14.13541776,257.03,256.94,14.13541776]
[1732270749934,14.13541776,256.99,256.92,14.13541776]
[1732270751364,14.13541776,256.99,256.91,20.0]
[1732270751559,14.13541776,256.99,256.92,23.776884]
[1732270751860,14.13541776,257.01,256.94,23.776884]
[1732270752052,14.13541776,257.01,256.95,20.0]
[1732270752460,14.13541776,257.03,256.96,23.776884]
[1732270752757,14.13541776,256.98,256.9,20.0]
[1732270753934,14.13541776,256.96,256.89,14.13541776]
[1732270754160,14.13541776,256.96,256.79,6.1391]
[1732270754161,14.13541776,256.94,256.87,14.13541776]
[1732270754462,14.13541776,256.96,256.87,14.13541776]
[1732270754643,9.05633666,256.96,256.88,9.05633666]
[1732270755352,9.05633666,256.92,256.79,6.1391]
[1732270755550,9.05633666,256.92,256.84,9.05633666]
[1732270756144,9.05633666,256.92,256.79,6.1391]
[1732270756347,9.05633666,256.94,256.86,9.05633666]
[1732270756550,21.572,256.99,256.88,9.05633666]
[1732270756747,14.14923279,256.97,256.89,14.14923279]
[1732270759155,14.14923279,256.97,256.9,20.0]
[1732270760763,14.14923279,256.99,256.92,20.0]
[1732270761252,14.14923279,256.97,256.9,20.0]
[1732270762944,14.14923279,256.99,256.9,20.0]
[1732270765052,14.14923279,256.97,256.9,20.0]
[1732270768339,14.14923279,257.01,256.94,20.0]
[1732270772157,22.6289,257.11,256.94,34.14923279]
[1732270772359,14.14923279,257.01,256.94,34.14923279]
[1732270774257,14.14923279,256.97,256.92,20.0]
[1732270774471,14.14923279,256.96,256.91,15.8793]
[1732270775559,14.14923279,256.95,256.89,15.0]
[1732270776083,14.14923279,256.95,256.9,20.0]
[1732270776751,9.05627116,256.95,256.9,20.0]
[1732270778472,9.05627116,256.93,256.89,15.0]
[1732270779783,23.776884,257.05,256.89,15.0]
[1732270779964,9.05627116,256.97,256.89,15.0]
[1732270780467,9.05627116,256.95,256.89,15.0]
[1732270781178,9.05627116,256.97,256.89,24.05627116]
[1732270781473,9.05627116,256.95,256.89,15.0]
[1732270781673,23.776884,257.08,256.9,20.0]
[1732270781872,7.85623069,257.09,256.9,20.0]
[1732270781873,2.86846428,257.07,256.9,20.0]
[1732270782171,9.05627116,256.96,256.9,20.0]
[1732270788655,27.666484,257.1,256.91,32.83315516]
[1732270788860,9.05627116,256.99,256.92,20.0]
[1732270789076,9.05627116,256.99,256.94,20.0]
[1732270789455,9.05627116,256.99,256.93,23.776884]
[1732270789659,9.05627116,256.99,256.94,20.0]
[1732270790170,9.05627116,256.99,256.92,20.0]
[1732270790659,9.05627116,256.99,256.94,20.0]
[1732270791081,9.05627116,256.99,256.92,20.0]
[1732270791582,9.05627116,256.99,256.94,20.0]
[1732270792153,9.05627116,256.99,256.92,20.0]
[1732270792359,9.05627116,256.99,256.94,20.0]
[1732270793561,9.05627116,256.98,256.94,20.0]
[1732270794462,9.05627116,256.96,256.91,20.0]
[1732270799889,9.05627116,256.99,256.93,20.0]
[1732270800267,9.05627116,256.96,256.93,20.0]
[1732270800470,9.05627116,256.95,256.9,20.0]
[1732270800794,9.05627116,256.94,256.9,20.0]
[1732270802193,9.05627116,256.92,256.89,15.0]
[1732270805199,6.3613,257.0,256.89,15.0]
[1732270805380,9.05627116,256.92,256.89,15.0]
[1732270805880,9.05627116,256.9,256.89,15.0]
[1732270807068,11.91423544,256.9,256.89,15.0]
[1732270809798,2.85796428,256.9,256.89,15.0]
[1732270810296,11.90782798,256.9,256.89,15.0]
[1732270810476,11.90788994,256.9,256.89,15.0]
[1732270811086,9.05627116,256.9,256.89,15.0]
[1732270813089,11.90561308,256.9,256.89,15.0]
[1732270813290,9.05627116,256.9,256.89,15.0]
[1732270813589,35.6812317,256.9,256.89,15.0]
[1732270813910,31.6050715,256.9,256.89,15.0]
[1732270814284,55.3819555,256.9,256.89,15.0]
[1732270817889,55.3629729,256.9,256.89,15.0]
[1732270819198,94.08805754,256.9,256.89,15.0]
[1732270819383,9.05627116,256.81,256.75,9.05627116]
[1732270819585,9.05627116,256.82,256.73,15.7545]
[1732270819785,21.4777,256.9,256.81,9.05627116]
[1732270819985,9.05627116,256.87,256.81,9.05627116]
[1732270820287,2.02325572,256.94,256.81,9.05627116]
[1732270820288,9.05627116,256.88,256.81,9.05627116]
[1732270820487,2.02325572,256.94,256.82,9.05627116]
[1732270820488,9.05627116,256.89,256.82,9.05627116]
[1732270820996,9.05627116,256.88,256.77,23.776884]
[1732270821302,9.05627116,256.88,256.81,9.05627116]
[1732270821507,9.05627116,256.89,256.82,9.05627116]
[1732270822087,9.05627116,256.88,256.81,9.05627116]
[1732270822693,9.05627116,256.87,256.8,9.05627116]
[1732270822998,9.05627116,256.86,256.79,9.05627116]
[1732270823198,9.05627116,256.85,256.74,20.0]
[1732270823388,9.05627116,256.85,256.78,9.05627116]
[1732270823582,9.05627116,256.86,256.74,20.0]
[1732270823900,9.05627116,256.86,256.79,9.05627116]
[1732270824311,9.05627116,256.86,256.75,23.776884]
[1732270824607,9.05627116,256.86,256.79,9.05627116]
[1732270825910,9.05627116,256.87,256.8,9.05627116]
[1732270826393,9.05627116,256.88,256.81,9.05627116]
[1732270826708,9.05627116,256.88,256.75,23.776884]
[1732270826914,9.05627116,256.88,256.81,9.05627116]
[1732270827091,9.05627116,256.86,256.79,9.05627116]
[1732270827399,9.05627116,256.87,256.8,9.05627116]
[1732270828787,9.05627116,256.88,256.8,9.05627116]
[1732270829792,3.8919,256.94,256.8,9.05627116]
[1732270830119,9.05627116,256.88,256.8,9.05627116]
[1732270830411,9.05627116,256.87,256.76,20.0]
[1732270830704,9.05627116,256.87,256.8,9.05627116]
[1732270831206,23.776884,256.95,256.78,20.0]
[1732270831421,9.05627116,256.88,256.8,9.05627116]
[1732270831614,3.8914,256.98,256.81,29.05627116]
[1732270831820,9.05627116,256.92,256.84,20.0]
[1732270832002,9.05627116,256.9,256.84,20.0]
[1732270832202,9.05627116,256.88,256.84,20.0]
[1732270832420,9.05627116,256.88,256.79,23.776884]
[1732270832720,9.05627116,256.89,256.82,9.05627116]
[1732270833104,9.05627116,256.86,256.8,20.0]
[1732270833421,9.05627116,256.89,256.81,9.05627116]
[1732270833721,9.05627116,256.89,256.82,20.0]
[1732270834197,9.05627116,256.88,256.8,29.05627116]
[1732270834610,9.05627116,256.89,256.82,9.05627116]
[1732270834813,9.05627116,256.89,256.83,20.0]
[1732270835140,9.05627116,256.9,256.83,20.0]
[1732270835324,15.9866,256.97,256.88,9.05627116]
[1732270835496,9.02835094,256.94,256.87,20.0]
[1732270835693,15.9866,256.97,256.87,20.0]
[1732270835897,9.05627116,256.94,256.87,20.0]
[1732270836223,9.05627116,256.94,256.88,20.0]
[1732270836730,9.05627116,256.94,256.87,20.0]
[1732270836932,9.05627116,256.96,256.88,9.05627116]
[1732270837105,9.05627116,256.96,256.89,20.0]
[1732270837505,9.05627116,256.94,256.89,20.0]
[1732270838916,36.22508464,257.01,256.82,43.776884]
[1732270839117,9.05627116,256.9,256.82,43.776884]
[1732270840032,9.05627116,256.9,256.82,52.83315516]
[1732270841929,9.05627116,256.86,256.78,9.05627116]
[1732270842108,9.05627116,256.88,256.81,20.0]
[1732270842428,9.05627116,256.88,256.8,9.05627116]
[1732270842640,9.05627116,256.88,256.76,15.6059]
[1732270842828,9.05627116,256.88,256.8,9.05627116]
[1732270843612,9.05627116,256.88,256.82,20.0]
[1732270844016,3.891,257.0,256.82,29.05627116]
[1732270844219,2.84005403,256.99,256.82,29.05627116]
[1732270844424,9.05627116,256.91,256.82,29.05627116]
[1732270844607,9.05627116,256.91,256.84,20.0]
[1732270844815,9.05627116,256.91,256.85,23.776884]
[1732270845508,8.86166816,256.91,256.85,23.776884]
[1732270846010,9.05627116,256.89,256.85,23.776884]
[1732270847539,9.05627116,256.87,256.8,20.0]
[1732270847728,36.22508464,257.01,256.82,20.0]
[1732270847729,9.05627116,256.89,256.82,20.0]
[1732270848326,9.05627116,256.87,256.79,9.05627116]
[1732270848525,9.05627116,256.87,256.8,20.0]
[1732270848728,9.05627116,256.87,256.82,20.0]
[1732270850224,36.22508464,257.01,256.82,20.0]
[1732270850421,9.05627116,256.91,256.83,23.776884]
[1732270850622,10.2229,257.02,256.85,9.05627116]
[1732270850846,9.05627116,256.93,256.86,20.0]
[1732270851331,9.05627116,256.93,256.84,20.0]
[1732270851529,9.05627116,256.91,256.84,20.0]
[1732270851732,9.05627116,256.89,256.84,20.0]
[1732270851945,9.05627116,256.89,256.82,20.0]
[1732270852241,9.05627116,256.89,256.78,23.776884]
[1732270852426,9.05627116,256.89,256.82,43.776884]
[1732270854449,22.1301,256.92,256.76,15.6059]
[1732270854628,9.05627116,256.88,256.79,9.05627116]
[1732270855619,9.05627116,256.88,256.8,43.776884]
[1732270856422,9.05627116,256.86,256.8,43.776884]
[1732270858850,9.05627116,256.86,256.79,9.05627116]
[1732270859147,9.05627116,256.88,256.79,9.05627116]
[1732270862217,9.05627116,256.86,256.79,9.05627116]
[1732270865180,9.05627116,256.86,256.74,23.776884]
[1732270865357,9.05627116,256.86,256.78,20.0]
[1732270866129,9.05627116,256.82,256.74,9.05627116]
[1732270866649,9.05627116,256.76,256.67,9.05627116]
[1732270866849,9.05627116,256.76,256.66,15.8894]
[1732270866850,9.05627116,256.78,256.69,9.05627116]
[1732270867542,9.05627116,256.81,256.73,9.05627116]
[1732270868030,22.2559,256.88,256.76,23.776884]
[1732270868227,22.2559,256.88,256.67,6.0333]
[1732270868228,9.05627116,256.83,256.67,6.0333]
[1732270868518,9.05627116,256.83,256.75,9.05627116]
[1732270869349,9.05627116,256.83,256.68,23.776884]
[1732270869548,9.05627116,256.83,256.73,9.05627116]
[1732270870646,9.05627116,256.83,256.74,20.0]
[1732270871347,9.05627116,256.79,256.68,23.776884]
[1732270871553,9.05627116,256.79,256.7,9.05627116]
[1732270872948,9.05627116,256.75,256.6,8.5716]
[1732270873253,9.05627116,256.75,256.67,9.05627116]
[1732270873751,9.05627116,256.77,256.67,9.05627116]
[1732270873952,9.05627116,256.75,256.67,9.05627116]
[1732270874153,9.05627116,256.75,256.68,20.0]
[1732270874345,9.05627116,256.75,256.67,29.05627116]
[1732270875056,9.05627116,256.73,256.6,6.0716]
[1732270875224,9.05627116,256.71,256.6,6.0716]
[1732270875546,9.05627116,256.73,256.65,9.05627116]
[1732270875752,15.0819,256.77,256.6,0.58438514]
[1732270875931,9.05627116,256.63,256.55,0.58432288]
[1732270876142,9.05627116,256.63,256.54,7.75224932]
[1732270876457,9.05627116,256.65,256.53,15.8035]
[1732270876770,6.1789,256.68,256.53,15.8035]
[1732270876934,6.1789,256.68,256.57,9.05627116]
[1732270877138,6.1789,256.68,256.53,15.8035]
[1732270877653,15.23517116,256.68,256.53,15.8035]
[1732270877852,6.3759,256.74,256.59,9.05627116]
[1732270878161,6.3759,256.74,256.54,0.58454072]
[1732270878358,6.3759,256.74,256.62,9.05627116]
[1732270878561,9.05627116,256.71,256.62,9.05627116]
[1732270878738,6.3759,256.74,256.62,9.05627116]
[1732270878940,9.05627116,256.68,256.55,23.776884]
[1732270879264,6.3759,256.74,256.62,9.05627116]
[1732270879473,9.05627116,256.72,256.63,23.776884]
[1732270880456,6.3759,256.74,256.63,23.776884]
[1732270880653,9.05627116,256.72,256.63,23.776884]
[1732270880851,15.0819,256.77,256.65,23.776884]
[1732270881156,6.01419518,256.82,256.66,20.0]
[1732270881358,9.05627116,256.74,256.66,20.0]
[1732270881738,9.05627116,256.72,256.66,20.0]
[1732270882459,9.05627116,256.72,256.64,20.0]
[1732270883660,9.05627116,256.75,256.67,23.776884]
[1732270883864,9.05627116,256.73,256.67,23.776884]
[1732270884268,9.05627116,256.73,256.66,23.776884]
[1732270885673,9.05627116,256.71,256.66,23.776884]
[1732270885897,9.05627116,256.71,256.65,20.0]
[1732270886053,9.05627116,256.73,256.65,20.0]
[1732270886352,9.05627116,256.75,256.66,32.83315516]
[1732270887754,9.05627116,256.78,256.69,23.776884]
[1732270887966,9.05627116,256.76,256.69,23.776884]
[1732270888274,9.05627116,256.74,256.68,23.776884]
[1732270889156,9.05627116,256.74,256.66,20.0]
[1732270889352,9.05627116,256.72,256.64,20.0]
[1732270889553,30.26909518,256.85,256.64,20.0]
[1732270889554,9.05627116,256.7,256.64,20.0]
[1732270889860,23.776884,256.83,256.64,20.0]
[1732270890058,9.05627116,256.72,256.65,20.0]
[1732270890756,21.37579518,256.85,256.67,9.05627116]
[1732270890958,9.05627116,256.76,256.68,20.0]
[1732270891166,9.05627116,256.76,256.68,23.776884]
[1732270892262,15.3616,256.85,256.67,9.05627116]
[1732270892473,15.3616,256.85,256.68,20.0]
[1732270892474,9.05627116,256.76,256.68,20.0]
[1732270893247,9.05627116,256.73,256.64,9.05627116]
[1732270893453,9.05627116,256.71,256.65,43.776884]
[1732270893670,9.05627116,256.71,256.65,20.0]
[1732270894175,9.05627116,256.71,256.63,20.0]
[1732270894952,9.05627116,256.71,256.64,23.776884]
[1732270895152,9.05627116,256.71,256.65,20.0]
[1732270895480,8.6093,256.86,256.52,2.5]
[1732270895481,9.05627116,256.66,256.53,0.58430516]
[1732270895651,9.05627116,256.66,256.56,9.05627116]
[1732270896670,9.05627116,256.66,256.57,24.36130743]
[1732270896958,9.05627116,256.66,256.57,0.58442343]
[1732270897368,9.07712739,256.66,256.57,0.58442343]
[1732270897574,9.07712739,256.66,256.53,20.58442514]
[1732270898571,9.07712739,256.66,256.55,20.0]
[1732270898874,9.07712739,256.66,256.57,20.0]
[1732270899172,9.07712739,256.66,256.59,20.0]
[1732270899664,9.07712739,256.64,256.57,20.0]
[1732270899863,9.07712739,256.64,256.58,23.776884]
[1732270900063,9.07712739,256.64,256.59,20.0]
[1732270901474,15.684,256.7,256.59,20.0]
[1732270901650,9.07712739,256.65,256.59,20.0]
[1732270902260,15.684,256.7,256.61,20.0]
[1732270902454,9.07712739,256.66,256.61,20.0]
[1732270903182,9.07712739,256.66,256.53,20.58436574]
[1732270903374,9.07712739,256.66,256.56,23.776884]
[1732270903672,9.07712739,256.66,256.59,20.0]
[1732270904059,9.07712739,256.64,256.57,20.0]
[1732270904259,9.07712739,256.64,256.58,23.776884]
[1732270904474,9.07712739,256.64,256.59,20.0]
[1732270906680,6.6447,256.74,256.61,20.0]
[1732270906983,9.07712739,256.69,256.63,20.0]
[1732270907558,9.07712739,256.69,256.57,20.0]
[1732270907765,9.07712739,256.69,256.58,23.776884]
[1732270907965,9.07712739,256.69,256.59,20.0]
[1732270908182,9.07712739,256.69,256.6,23.776884]
[1732270908556,9.07712739,256.69,256.61,20.0]
[1732270908972,9.07712739,256.65,256.61,20.0]
[1732270909181,6.01419518,256.78,256.55,22.5]
[1732270909479,9.07712739,256.71,256.56,0.58429099]
[1732270910264,9.07712739,256.71,256.59,23.776884]
[1732270910471,7.73150962,256.8,256.62,20.0]
[1732270910679,7.73150962,256.8,256.56,0.58429099]
[1732270910680,9.07712739,256.69,256.64,20.0]
[1732270911382,9.07712739,256.69,256.55,0.58437894]
[1732270911383,9.07712739,256.69,256.56,23.776884]
[1732270911572,9.07712739,256.69,256.53,22.5]
[1732270911573,9.07712739,256.69,256.61,20.0]
[1732270911889,6.545,256.71,256.59,20.0]
[1732270912093,15.34,256.76,256.6,0.58439471]
[1732270912388,9.07712739,256.71,256.6,0.58439471]
[1732270912786,9.07712739,256.71,256.54,0.58434201]
[1732270912996,9.07712739,256.71,256.56,20.0]
[1732270913288,15.34,256.76,256.61,20.0]
[1732270913469,9.07712739,256.73,256.63,20.0]
[1732270915185,15.5622,256.82,256.66,23.776884]
[1732270915483,9.07712739,256.75,256.67,20.0]
[1732270915887,9.07712739,256.77,256.67,20.0]
[1732270916284,15.5622,256.82,256.68,23.776884]
[1732270916475,6.5454,256.83,256.69,20.0]
[1732270916676,15.3457,256.88,256.72,23.776884]
[1732270916877,9.07712739,256.82,256.75,20.0]
[1732270917876,15.3457,256.88,256.75,20.0]
[1732270918078,3.8915,256.97,256.77,20.0]
[1732270918079,15.5081,256.95,256.77,20.0]
[1732270918394,9.07712739,256.89,256.79,20.0]
[1732270918585,9.07712739,256.88,256.79,20.0]
[1732270919700,9.07712739,256.87,256.79,20.0]
[1732270920394,9.07712739,256.84,256.76,23.776884]
[1732270920597,9.07712739,256.84,256.77,20.0]
[1732270921793,9.07712739,256.85,256.77,20.0]
[1732270922097,9.07712739,256.86,256.77,20.0]
[1732270923101,9.07712739,256.85,256.77,20.0]
[1732270923599,9.07712739,256.81,256.74,16.6035]
[1732270925484,9.07712739,256.79,256.66,23.776884]
[1732270925681,9.07712739,256.79,256.66,31.58565561]
[1732270925998,36.30850956,256.88,256.65,21.9355]
[1732270925999,9.07712739,256.77,256.65,21.9355]
[1732270926409,9.07712739,256.7,256.54,3.49817371]
[1732270926584,9.07712739,256.67,256.54,0.58421888]
[1732270927102,9.07712739,256.7,256.54,0.58421888]
[1732270927808,9.07712739,256.7,256.55,23.776884]
[1732270928008,9.07712739,256.7,256.6,20.0]
[1732270928210,6.4036,256.82,256.61,23.776884]
[1732270928410,9.07712739,256.75,256.64,20.0]
[1732270929481,9.07712739,256.71,256.63,20.0]
[1732270929892,9.07712739,256.69,256.63,20.0]
[1732270931195,9.07712739,256.65,256.56,20.0]
[1732270931397,9.07712739,256.63,256.55,16.6224]
[1732270931700,9.07712739,256.61,256.49,16.6224]
[1732270932004,9.07712739,256.61,256.49,17.20692997]
[1732270932381,9.07712739,256.63,256.49,17.20692997]
[1732270932585,6.2146,256.69,256.49,17.20692997]
[1732270932812,14.18623679,256.63,256.49,17.20692997]
[1732270932986,6.6028,256.77,256.52,2.5]
[1732270933186,14.18623679,256.7,256.53,0.58437024]
[1732270933589,14.18623679,256.7,256.53,20.58437024]
[1732270933805,14.18623679,256.7,256.55,20.0]
[1732270934010,14.18623679,256.7,256.56,0.5843656]
[1732270934502,14.18623679,256.68,256.56,0.5843656]
[1732270937896,14.18623679,256.68,256.56,0.5843656]
[1732270938109,14.18623679,256.7,256.56,0.5843656]
[1732270939614,14.18623679,256.7,256.58,20.0]
[1732270939813,6.6028,256.77,256.62,20.0]
[1732270939814,14.18623679,256.72,256.62,20.0]
[1732270947323,14.18623679,256.73,256.62,20.0]
[1732270947623,14.18623679,256.74,256.62,20.0]
[1732270948315,14.18623679,256.73,256.62,20.0]
[1732270950098,14.18623679,256.71,256.62,20.0]
[1732270950415,23.776884,256.82,256.54,15.41]
[1732270950416,14.18623679,256.65,256.54,15.41]
[1732270950619,14.18623679,256.65,256.54,15.99443804]
[1732270951815,14.18623679,256.63,256.54,15.99443804]
[1732270952028,14.18623679,256.61,256.54,15.99443804]
[1732270953105,14.18623679,256.61,256.54,15.41]
[1732270954214,14.18623679,256.59,256.53,0.58454332]
[1732270954518,14.18623679,256.61,256.49,0.58454838]
[1732270954717,9.08026733,256.63,256.49,0.58454838]
[1732270955103,6.1631,256.71,256.49,0.58454838]
[1732270955303,9.08026733,256.61,256.49,0.58454838]
[1732270955527,9.08026733,256.61,256.51,20.0]
[1732270955707,9.08026733,256.61,256.52,0.58452727]
[1732270956022,6.1631,256.71,256.52,0.58452727]
[1732270956333,9.08026733,256.65,256.54,20.0]
[1732270956623,9.08026733,256.65,256.55,0.58444828]
[1732270957204,9.08026733,256.67,256.55,0.58444828]
[1732270957624,9.08026733,256.68,256.55,0.58444828]
[1732270958217,9.08026733,256.7,256.59,20.0]
[1732270958529,9.08026733,256.69,256.55,0.58444828]
[1732270958708,9.08026733,256.68,256.56,23.776884]
[1732270958908,36.32106932,256.75,256.56,23.776884]
[1732270958909,9.08026733,256.67,256.56,23.776884]
[1732270959113,9.08026733,256.67,256.58,23.776884]
[1732270959625,9.08026733,256.65,256.55,23.776884]
[1732270959815,9.08026733,256.63,256.54,0.58435222]
[1732270960615,9.08026733,256.65,256.54,0.58435222]
[1732270961018,23.776884,256.74,256.54,0.58435222]
[1732270961210,9.08026733,256.68,256.54,0.58435222]
[1732270961732,9.08026733,256.68,256.56,20.0]
[1732270961913,9.08026733,256.68,256.57,0.58439283]
[1732270964041,9.08026733,256.65,256.55,0.5844203]
[1732270964220,9.08026733,256.65,256.52,20.5844203]
[1732270964616,9.08026733,256.63,256.52,20.5844203]
[1732270966625,14.18696981,256.63,256.52,20.5844203]
[1732270967138,14.18696981,256.64,256.52,20.5844203]
[1732270967541,14.18696981,256.62,256.52,20.5844203]
[1732270967833,14.18696981,256.62,256.53,23.776884]
[1732270968018,14.18696981,256.64,256.54,20.58453108]
[1732270968845,14.18696981,256.66,256.56,20.0]
[1732270969031,14.18696981,256.68,256.58,20.0]
[1732270969225,14.18696981,256.7,256.58,20.0]
[1732270969834,6.2863,256.77,256.52,20.58437299]
[1732270969835,14.18696981,256.63,256.52,20.58437299]
[1732270971441,14.18696981,256.63,256.54,20.0]
[1732270971635,14.18696981,256.63,256.54,20.58446507]
[1732270971943,14.18696981,256.67,256.56,20.0]
[1732270972139,14.18696981,256.69,256.59,23.776884]
[1732270972344,14.18696981,256.69,256.6,20.0]
[1732270977243,14.18696981,256.69,256.56,0.58435371]
[1732270977244,14.18696981,256.67,256.58,20.0]
[1732270977447,14.18696981,256.67,256.6,20.0]
[1732270978548,14.18696981,256.71,256.62,43.776884]
[1732270979733,14.18696981,256.67,256.62,20.0]
[1732270981646,14.18696981,256.69,256.62,20.0]
[1732270983041,14.18696981,256.67,256.63,23.776884]
[1732270983352,14.18696981,256.69,256.63,23.776884]
[1732270984845,14.18696981,256.67,256.63,23.776884]
[1732270985351,6.2863,256.77,256.63,23.776884]
[1732270985352,14.18696981,256.69,256.63,23.776884]
[1732270985554,14.18696981,256.71,256.63,23.776884]
[1732270986744,9.07431743,256.71,256.63,23.776884]
[1732270987632,6.01419518,256.82,256.67,23.776884]
[1732270987951,9.07431743,256.8,256.71,23.776884]
[1732270988332,9.07431743,256.8,256.7,20.0]
[1732270988531,9.07431743,256.8,256.71,23.776884]
[1732270989452,9.90679518,256.9,256.68,6.4696]
[1732270989453,6.01419518,256.92,256.74,20.0]
[1732270989655,9.07431743,256.83,256.76,20.0]